Cogmind - Beta 14 @@@ ROGUE MODE // 2024.08.18 @ 19:19:36 Player: fwankie Result: Destroyed by G-47 Trooper with Particle Gun Performance ------------- Evolutions (0) 0 Regions Visited (2) 400 Robots Destroyed (4) 20 Value Destroyed (35) 35 Prototype IDs (0) 0 Alien Tech Used (0) 0 Bonus (-48) -48 TOTAL SCORE: 407 Bonus ------- Friendly Fire -48 Cogmind --------- Core Integrity 0/250 Matter 300/300 Energy 55/100 System Corruption 5% Temperature Cool (15) Movement Core (50) Location -10/Mines Parts ------- > --- POWER (1) -------- (None) > --- PROPULSION (2) --- Combat Airjet > --- UTILITY (2) ------ Improved Terrain Scanner Terrain Scan Processor > --- WEAPON (2) ------- (None) > --- INVENTORY (5) ---- Small Storage Unit High-capacity Battery (250) Experimental Sensor Array Seismic Detector Peak State ------------ > --- POWER ------------ (None) > --- PROPULSION ------- Combat Airjet > --- UTILITY ---------- Improved Terrain Scanner Terrain Scan Processor > --- WEAPON ----------- Assault Rifle Mining Laser > --- INVENTORY -------- Small Storage Unit High-capacity Battery Experimental Sensor Array Seismic Detector [Rating: 13] Favorites ----------- Power Ion Engine Engine Ion Engine Propulsion Aluminum Leg Leg Aluminum Leg Wheel Wheel Hover Unit Combat Airjet Utility ECM Suite Device ECM Suite Storage Small Storage Unit Processor Terrain Scan Processor Weapon Assault Rifle Ballistic Gun Assault Rifle Special Weapon Mining Laser Build | -11 -10 -10 ------- Run | Yrd Mat Min Slots Evolved . | . . . Power . | . . . Propulsion . | . . . Utility . | . . . Weapon . | . . . Parts Attached 24 | 9 3 12 Power 3 | 2 1 . Engine 3 | 2 1 . Core . | . . . Reactor . | . . . Propulsion 6 | 4 . 2 Treads . | . . . Leg 2 | 2 . . Wheel 3 | 2 . 1 Hover 1 | . . 1 Flight . | . . . Utility 6 | 1 2 3 Device 4 | . 2 2 Storage 1 | 1 . . Processor 1 | . . 1 Hackware . | . . . Protection . | . . . Artifact . | . . . Weapon 9 | 2 . 7 Energy Gun . | . . . Energy Cannon . | . . . Ballistic Gun 4 | 2 . 2 Ballistic Cannon . | . . . Launcher . | . . . Special Weapon 5 | . . 5 Impact Weapon . | . . . Slashing Weapon . | . . . Piercing Weapon . | . . . Special Melee Weapon . | . . . Unidentified Prototypes . | . . . Parts Lost 9 | . . 9 Power 1 | . . 1 Propulsion 2 | . . 2 Utility 2 | . . 2 Weapon 4 | . . 4 Highest Loss Streak 6 | . . 6 To Critical Strikes . | . . . Average Slot Usage (%) 80 | . 96 77 Engine 8 | . 14 7 Leg 17 | . 28 15 Hover 4 | . . 4 Device 20 | . 19 20 Processor 4 | . . 5 Ballistic Gun 14 | . 28 13 Special Weapon 7 | . . 9 Peak Build Rating 13 | 6 7 13 Average Rating 7 | 4 6 8 On Entrance 4 | . 6 7 Naked Turns . | . . . Heaviest Build 14 | 14 14 12 Greatest Support 26 | 26 20 20 Greatest Overweight (x) . | . . . Average Overweight (x) . | . . . Largest Inventory Capacity 8 | 8 8 5 Average Capacity 5 | 6 6 5 Most Carried 5 | 2 4 5 Average Carried 3 | . 1 4 Final Capacity 8 | 8 5 5 Final Carried 4 | 1 4 4 Class Distribution -------------------- 52% | Infiltrator-Mutant 47% | Mutant Dominant Class ---------------- Infiltrator-Mutant | -10/Materials Infiltrator-Mutant | -10/Mines Resources | -11 -10 -10 ----------- Run | Yrd Mat Min Matter Collected 468 | 197 103 168 Remotely . | . . . Salvage Created 41 | . . 41 Parts 7 | . . 7 Haulers Intercepted . | . . . Recyclers Shooed . | . . . Parts Field Recycled . | . . . Retrieved Matter . | . . . Parts Self-Destructed . | . . . Prevented . | . . . Kills | -11 -10 -10 ------- Run | Yrd Mat Min Combat Hostiles Destroyed 3 | . . 3 Guns 3 | . . 3 Classes Destroyed 2 | . . 2 Builder 1 | . . 1 Swarmer 3 | . . 3 Best Kill Streak 3 | . . 3 Combat Bots Only 3 | . . 3 Max Kills in Single Turn 2 | . . 2 Gunslinging 1 | . . 1 Exploded . | . . . Melee . | . . . Uniques/NPCs Destroyed . | . . . Combat | -11 -10 -10 -------- Run | Yrd Mat Min Hostile Shots Fired 88 | . . 88 Missed 24 | . . 24 Damage Taken 909 | . . 909 Core 260 | . . 260 Absorbed by Shields . | . . . Core Remaining (%) 100 | 100 . . Volleys Fired 27 | . . 27 Largest 2 | . . 2 Hottest 200 | . . 200 Shots Fired 36 | . . 36 Gun 32 | . . 32 Cannon . | . . . Launcher . | . . . Special 4 | . . 4 Kinetic 32 | . . 32 Thermal 4 | . . 4 Explosive . | . . . Electromagnetic . | . . . Robot Hit Streak 4 | . . 4 Robot Miss Streak 3 | . . 3 Penetration Max . | . . . Secondary Targets 1 | . . 1 Max Gunslinging Chain 1 | . . 1 Shots Hit Robots 17 | . . 17 Core Hits 12 | . . 12 Critical Kills 1 | . . 1 Critical Parts Destroyed . | . . . Critical Strikes 1 | . . 1 Destroy 1 | . . 1 Melee Attacks . | . . . Impact . | . . . Slashing . | . . . Piercing . | . . . Sneak Attacks . | . . . Combat Hostiles . | . . . Follow-up Attacks . | . . . Damage Inflicted 260 | . . 260 Guns 236 | . . 236 Cannons . | . . . Explosions . | . . . Melee . | . . . Ramming 24 | . . 24 Kinetic 236 | . . 236 Thermal . | . . . Explosive . | . . . Electromagnetic . | . . . Impact . | . . . Slashing . | . . . Piercing . | . . . Highest Corruption 5 | . . 5 Average Corruption 5 | . . 5 Corruption Purged . | . . . Corruption Blocked . | . . . Effects 5 | . . 5 Energy Discharges 2 | . . 2 Data Loss (minor) 1 | . . 1 Data Loss (major) 1 | . . 1 Misfires 1 | . . 1 Overload Shots . | . . . Overflow Damage . | . . . Projectiles . | . . . Explosions . | . . . Melee . | . . . Knockbacks . | . . . Impact . | . . . Kinetic . | . . . Secondary . | . . . Self-Inflicted Damage 8 | . . 8 Shots . | . . . Rammed 9 | . . 9 Targets Rammed 15 | . . 15 Kicked 6 | . . 6 Crushed . | . . . Highest Temperature 56 | . . 56 Average Temperature 33 | . . 33 Received Heat Transfer 162 | . . 162 Siege Activations . | . . . Robots Corrupted . | . . . Combat Hostiles . | . . . Parts Fried . | . . . Impact Corruptions . | . . . Robots Melted . | . . . Combat Hostiles . | . . . Parts Melted . | . . . Heat Transferred . | . . . Parts Sabotaged . | . . . Parts Stolen . | . . . Parts Stripped . | . . . Power Chain Reactions . | . . . Alert | -11 -10 -10 ------- Run | Yrd Mat Min Peak Influence 72 | . . 72 Initial . | . . . Average 12 | . . 16 Maximum Alert Level . | . . . Low Security (%) 100 | 100 100 100 Level 1 . | . . . Level 2 . | . . . Level 3 . | . . . Level 4 . | . . . Level 5 . | . . . High Security . | . . . Max Security . | . . . Squads Dispatched 1 | . 1 . Investigation 1 | . 1 . Extermination . | . . . Reinforcement . | . . . Assault . | . . . Garrison . | . . . Intercept . | . . . Searches Triggered . | . . . Construction Impeded . | . . . Haulers Reinforced . | . . . Active Scanning Responses . | . . . Cargo Convoy Interrupts . | . . . Stealth | -11 -10 -10 --------- Run | Yrd Mat Min Distress Signals . | . . . Communications Jammed . | . . . Distress Signals . | . . . Times Spotted 23 | . 1 22 Peak Tracking Total 14 | . 1 14 Tactical Retreats 1 | . . 1 Traps | -11 -10 -10 ------- Run | Yrd Mat Min Traps Triggered 1 | . 1 . Indirectly . | . . . Trap Hack Attempts . | . . . Triggered . | . . . Disarmed . | . . . Reprogrammed . | . . . Reused . | . . . Traps Extracted . | . . . Installed . | . . . Triggered . | . . . Machines | -11 -10 -10 ---------- Run | Yrd Mat Min Machines Disabled . | . . . Max in Single Turn . | . . . Machines Repaired . | . . . Machines Dismantled . | . . . Machines Sabotaged . | . . . Overloaded Fab Kills . | . . . Hacking | -11 -10 -10 --------- Run | Yrd Mat Min Machines Accessed . | . . . Terminals . | . . . Fabricators . | . . . Repair Stations . | . . . Recycling Units . | . . . Scanalyzers . | . . . Garrison Access . | . . . Total Hacks . | . . . Successful . | . . . Failed . | . . . Catastrophic . | . . . Database Lockouts . | . . . Manual . | . . . Terminals . | . . . Fabricators . | . . . Repair Stations . | . . . Recycling Units . | . . . Scanalyzers . | . . . Garrison Access . | . . . Terminal Hacks . | . . . Fabricator Hacks . | . . . Repair Station Hacks . | . . . Recycling Unit Hacks . | . . . Scanalyzer . | . . . Garrison Access Hacks . | . . . Unauthorized Hacks . | . . . Terminals . | . . . Fabricators . | . . . Repair Stations . | . . . Recycling Units . | . . . Scanalyzers . | . . . Garrison Access . | . . . Data Cores Recovered . | . . . Used . | . . . Hacking Detections . | . . . Full Trace Events . | . . . Feedback Events . | . . . Feedback Blocked . | . . . Robot Schematics Acquired . | . . . Robots Built . | . . . Authchips . | . . . Time . | . . . Total Robot Build Rating . | . . . Part Schematics Acquired . | . . . Parts Built . | . . . Authchips . | . . . Time . | . . . Total Part Build Rating . | . . . Parts Repaired . | . . . Time . | . . . Parts Recycled . | . . . Recycled Matter . | . . . Retrieved Matter . | . . . Retrieved Components . | . . . Parts Scanalyzed . | . . . Part Schematics Acquired . | . . . Parts Damaged . | . . . Bothacking | -11 -10 -10 ------------ Run | Yrd Mat Min Used RIF Installer . | . . . Robots Hacked . | . . . Non-combat . | . . . Combat . | . . . Robot Hacks Applied . | . . . Relay Couplers Released . | . . . Fabnet Peak Effective % . | . . . Robots Rewired . | . . . Allies Hacked . | . . . Hacks Repelled . | . . . Allies | -11 -10 -10 -------- Run | Yrd Mat Min Total Allies . | . . . Largest Group . | . . . Highest-Rated Group . | . . . Highest-Rated Ally . | . . . Total Orders . | . . . Ally Attacks . | . . . Total Damage . | . . . Kills . | . . . Allies Corrupted . | . . . Allies Melted . | . . . Intel | -11 -10 -10 ------- Run | Yrd Mat Min Robot Analysis Total . | . . . Derelict Logs Recovered 2 | . . 2 Drone Launches . | . . . Drone Recoveries . | . . . Exploration | -11 -10 -10 ------------- Run | Yrd Mat Min Turns Passed 720 | 72 86 562 Spaces Moved 514 | 45 64 405 Core 12 | 1 . 11 Treads . | . . . Legs 328 | 41 64 223 Wheels 6 | 3 . 3 Hover 168 | . . 168 Flight . | . . . Fastest Speed 50 | 50 120 50 Average Speed 104 | 116 120 101 Slowest Speed 120 | 120 120 120 Overloaded Moves . | . . . Propulsion Burnouts . | . . . Robots Hopped . | . . . Cave-ins Triggered . | . . . Exploration Rate (%) 32 | 5 18 75 Regions Visited 2 Branch Regions 1 Pre-discovered Areas 1 | . . 1 Known Exits Taken . | . . . Unknown Exits Taken 2 | 1 1 . Scrap Searched 1 | . . 1 Spaces Dug . | . . . Terrain Destroyed 3 | . . 3 Melee . | . . . Projectile 3 | . . 3 AOE . | . . . Terrain Rammed . | . . . Walls Destroyed . | . . . Machines Disabled . | . . . Actions | -11 -10 -10 --------- Run | Yrd Mat Min Total 650 | 66 72 512 Wait 40 | . . 40 Move 512 | 44 63 405 Hop . | . . . Pick Up 23 | 9 5 9 Fast Attach . | . . . Attach 16 | 8 1 7 Detach 2 | 2 . . Swap 8 | 1 2 5 Drop 7 | 2 1 4 Fire 27 | . . 27 Melee . | . . . Ram 9 | . . 9 Kick 6 | . . 6 Crush . | . . . Escape Stasis . | . . . Rewire . | . . . Trap . | . . . Miscellaneous . | . . . Route ------- -11/Scrapyard -10/Materials -10/Mines (discovered 1 exit: [*Mat]) History --------- Turn | Location | Event 14 | -11/Scrapyard | Discovered new exit (range 14) 73 | -11/Scrapyard | Entered Materials 134 | -10/Materials | Discovered new exit (range 12) 159 | -10/Materials | Entered Mines 162 | -10/Mines | Met a Derelict bent on vengeance 187 | -10/Mines | Learned Materials emergency access door positions 203 | -10/Mines | Learned location of Storage (-9) 393 | -10/Mines | Build established: Infiltrator-Mutant 446 | -10/Mines | Assembled infested the area 507 | -10/Mines | Lost 6 parts (1p2n2u1w) 609 | -10/Mines | Discovered new exit (range 12) 646 | -10/Mines | Found a damaged Exp. Sensor Array with a note attached 649 | -10/Mines | Found Prototype Device 702 | -10/Mines | Core integrity fell below 50% 716 | -10/Mines | Core integrity fell below 20% 721 | -10/Mines | Destroyed by G-47 Trooper with Particle Gun Last Messages --------------- while sneaking around Materials again, ha." 00648_ Dropped Mining Laser. 00649_ Acquired Prototype Device. 00651_ Acquired Mining Laser. 00661_ K-01 Serf collects debris. 00668_ System corrupted: Component data lost. 00669_ K-01 Serf collects debris. 00697_ Mining Laser destroyed. 00699_ Assault Rifle destroyed. 00707_ Mining Laser destroyed. 00710_ Slammed into G-47 Trooper. 00711_ Terrain Scan Processor broken. 00711_ Destabilizing: Short circuit. 00713_ Slammed into G-47 Trooper. 00713_ Imp. Terrain Scanner broken. 00713_ Destabilizing: Short circuit. 00714_ Slammed into G-47 Trooper. 00715_ Cmb. Airjet broken. 00715_ Destabilizing: Short circuit. 00716_ Slammed into G-47 Trooper. Map ----- +----------------------------------------------------+ | ?????????????????????#?#?## ## ## #?? | | ???????????????????????#??###### #?? | | ???????????????#?#?#????#????#?### #??? | | ????????????????????#?#?#?##?###### ### ###?#? | | ????????????????????#??##??????#### ### #?###? | | ???????????????????"#???#?##????#?# ### ##?#?? | | ????????????????????"?#?###??###### ### ###?#? | | ?????????????????? ??#????#### # ### ##?? | | ???????????????? ? #?##?### ### ##? | | ???????????????#?++?#?#?### ## #?# | | ?????????????? ??????###??## ##?? | | ?????????????# ??????#??###### ##??? | | ?????????????# ??#????##???##### #??#? | | ??????????? ## ? ? ???###?##### ##??## | | ###????????? ??? ?#?##?####?## ######?#? | | ###?????????? ???##?#?#?#??# ##?#???#?# | | ##???????????# ?? #?#?#####??## ##?##??##? | | ########?????## ?#?### ##?## ####?#??# | | #########??##??? < ???## k ### ##?#???# | | ############ ???# #?##???? | | ############ ####" #??#??#? | | ### #### ##### #### g#### ##????#?? | | ### ## ### #### ###??#????? | | #### t #### ###?#??#???? | | ## #####?## ### % ### #######?????? | | # ### ##### #####??##### @ ## ## ##????? | | # ### ##### ####?###### g ## #?????? | | ### ##### ########## % ### ##??#??? | | ##?## ######### ## #### ###?????? | | #####?## # ##%#### ##?####??? | | #####?########### ## # # # ####??#?#?? | | ###??########## # =### ##### ###?#####?#?? | | ##??#??#???##### ######??##??##??? | | ##??#??#?#### # # ###??####??#?## | | ###???#?#???## # ### #####??##???#?#?? | | #######????????### ## # ####????#??##?? | | ######????#?#???### # # ## # ######??#?#??? | | ###?????#??????##### # # # # ###?###??##?## | | ###??????????#???######### # #####?#??##??? | | ###???????????#??######## ## ##?#?#?##????# | | #######????????????###?#### #########?????? | | ######?????????#???#??### ###???#?? | | ##???????#??#?#??#?# #### #??####?# | | ##?????????#?##???## "!##### #### ### | | ## ###?????????????????## ###?## #? | | #######??????????????#???## ########### ## | | ######???????????#??#?????# #?###?##?####### | | ##??????????????#?????#?# ## #?#????#??#?##?# | | ##??????????????##???#??# ?# #?????#???#????? | | ##?????????????????#???####?# #?#????###?##??? | +----------------------------------------------------+ Best States ------------- Heat Dissipation 25 Energy Generation 10 Energy Capacity 250 Matter Stores 300 Matter Capacity 300 Sight Range 16 Terrain Scan Range 16 Terrain Scan Density 85 ECM Strength 1 Evasion (%) 55 Item Schematics ----------------- None Robot Schematics ------------------ None Fabricated ------------ Nothing Alien Tech Used ----------------- None Achievements -------------- Slippery One Challenges ------------ None Game ------ Seed ThermalAlertLauncher Manual? 0 Play Time 00:23:06 Cumulative 5.7 hours Start 2024.08.18 @ 18:55:11 End 2024.08.18 @ 19:19:36 Sessions 1 Manual Loads 0 Difficulty Rogue Special Mode None Game No. 6 Rogue 6 Adventurer 0 Explorer 0 Win Type - Total 0 Types 0/0/0/0/0/0/0/0/0 Lore% 2 Gallery% 12 Achievement% 10 Wizard Run 0 Options --------- Layout 1 ASCII 0 Keyboard 0 Movement Numpad Keybinds 0 Fullscreen 1 Font 16/SmallcapsGlow Map View 55x38 Zoom Use 0% Tactical HUD 1 Map Filters NONE Filters NONE Steam 1 RUN: efcad463-c5cd-4378-863a-189cc47fca8b